fUSD/lending_fUSD_20251112
["ID","MTS","AMOUNT","RATE_DAILY","PERIOD"]
[393745214,1762961439762,-6076.51646697,0.00039364,2]
[393745216,1762961439772,-400.0,0.000394,14]
[393745218,1762961439782,-162.66335237,0.00039405,20]
[393745220,1762961439794,-563.90910635,0.00039473,5]
[393745223,1762961439804,-168.0,0.00039493,2]
[393745225,1762961439814,-500.0,0.00039498,20]
[393745227,1762961439824,-500.0,0.00039498,20]
[393745229,1762961439834,-500.0,0.00039498,20]
[393745231,1762961439844,-500.0,0.00039498,20]
[393745233,1762961439854,-500.0,0.00039498,20]
[393745235,1762961439864,-329.39456257,0.00039498,20]
[393745238,1762961439877,-170.60543743,0.00039498,20]
[393745241,1762961439888,-500.0,0.00039498,20]
[393745243,1762961439897,-224.69802744,0.00039499,30]
[393745246,1762961439908,-200.0,0.00039499,30]
[393745247,1762961439920,-350.0,0.00039499,30]
[393745249,1762961439930,-150.0,0.00039499,10]
[393745251,1762961439940,-163.81012894,0.00039499,30]
[393745253,1762961439949,-150.0,0.00039499,2]
[393745255,1762961439960,-500.0,0.00039499,15]
[393745257,1762961439970,-500.0,0.00039499,20]
[393745259,1762961439980,-400.0,0.000395,14]
[393745262,1762961439991,-6076.51646697,0.00039526,2]
[393745263,1762961440001,-206.39146064,0.00039595,120]
[393745264,1762961440012,-400.0,0.000396,14]
[393745265,1762961440022,-150.0,0.00039636,10]
[393745266,1762961440032,-150.0,0.00039636,2]
[393745267,1762961440042,-6076.51646697,0.00039688,2]
[393745268,1762961440052,-1839.18,0.000397,15]
[393745269,1762961440063,-168.66,0.000397,15]
[393745270,1762961440073,-400.0,0.000397,14]
[393745272,1762961440083,-150.0,0.00039742,7]
[393745274,1762961440094,-250.0,0.00039773,10]
[393745276,1762961440103,-255.79899462,0.00039773,2]
[393745278,1762961440113,-2000.0,0.00039791,120]
[393745280,1762961440122,-1018.0,0.000398,14]
[393745282,1762961440132,-6076.51646697,0.0003985,15]
[393745284,1762961440142,-450.0,0.00039883,7]
[393745286,1762961440152,-278.25549,0.0003995,2]
[393745288,1762961440164,-5631.37001934,0.0003999,4]
[393745290,1762961440174,-151.0,0.0004,30]
[393745293,1762961440188,-1000.0,0.0004,120]
[393745295,1762961440198,-190.54,0.0004,120]
[393745297,1762961440208,-1590.41,0.0004,120]
[393745299,1762961440219,-1082.27,0.0004,120]
[393745301,1762961440230,-218.3,0.0004,120]
[393745303,1762961440240,-1107.37,0.0004,120]
[393745305,1762961440250,-635.83,0.0004,120]
[393745307,1762961440260,-250.0,0.0004,120]
[393745309,1762961440271,-250.0,0.0004,120]
[393745311,1762961440281,-250.0,0.0004,120]
[393745313,1762961440291,-250.0,0.0004,120]
[393745315,1762961440302,-250.000001,0.0004,100]
[393745317,1762961440312,-477.12749073,0.0004,30]
[393745319,1762961440322,-416.13183896,0.0004,7]
[393745321,1762961440332,-210.07,0.0004,30]
[393745323,1762961440342,-430.16088771,0.0004,30]
[393745325,1762961440352,-441.45535801,0.0004,120]
[393745327,1762961440361,-773.62720503,0.0004,30]
[393745329,1762961440372,-282.32527822,0.0004,120]
[393745331,1762961440381,-1068.37122328,0.0004,120]
[393745333,1762961440392,-965.83260051,0.0004,7]
[393745335,1762961440402,-1176.84974979,0.0004,30]
[393745337,1762961440415,-205.48609223,0.0004,30]
[393745339,1762961440425,-241.04535406,0.0004,120]
[393745341,1762961440434,-955.54341696,0.0004,120]
[393745343,1762961440444,-521.95158757,0.0004,120]
[393745345,1762961440453,-998.92030345,0.0004,120]
[393745347,1762961440464,-379.71116199,0.0004,30]
[393745349,1762961440475,-311.48768952,0.0004,100]
[393745351,1762961440487,-265.60815746,0.0004,30]
[393745353,1762961440498,-1023.81774842,0.0004,30]
[393745355,1762961440507,-177.74880997,0.0004,120]
[393745357,1762961440518,-515.0,0.0004,30]
[393745359,1762961440529,-221.33525989,0.0004,120]
[393745361,1762961440540,-1244.27,0.0004,120]
[393745363,1762961440550,-6076.51646697,0.00040012,15]
[393745365,1762961440560,-250.0,0.000401,120]
[393745367,1762961440571,-2815.68500967,0.00040101,4]
[393745370,1762961440581,-150.04,0.00040111,120]
[393745371,1762961440591,-150.04,0.00040111,120]
[393745373,1762961440601,-150.04,0.00040111,120]
[393745375,1762961440610,-150.04,0.00040111,120]
[393745377,1762961440620,-150.04,0.00040111,120]
[393745379,1762961440630,-150.04,0.00040111,120]
[393745381,1762961440639,-150.04,0.00040111,120]
[393745383,1762961440649,-150.04,0.00040111,120]
[393745385,1762961440659,-2815.68500967,0.00040125,4]
[393745388,1762961440675,-2500.0,0.00040127,14]
[393745390,1762961440685,-2500.0,0.00040135,14]
[393745391,1762961440695,-2815.68500967,0.00040143,4]
[393745394,1762961440705,-2500.0,0.00040144,14]
[393745396,1762961440715,-278.25549,0.0004015,3]
[393745398,1762961440726,-200.49008396,0.00040152,12]
[393745399,1762961440736,-561.61364358,0.00040152,15]
[393745401,1762961440747,-2500.0,0.00040153,14]
[393745403,1762961440761,-200.49008386,0.00040169,12]
[393745406,1762961440771,-561.6136435,0.00040173,15]
[393745407,1762961440782,-200.49008386,0.00040185,12]
[393745409,1762961440794,-5631.37001934,0.0004019,4]
[393745411,1762961440804,-561.6136435,0.00040193,15]
[393745413,1762961440814,-1215.10047862,0.00040195,14]
[393745415,1762961440823,-250.0,0.000402,120]
[393745418,1762961440835,-2000.0,0.000402,30]
[393745420,1762961440845,-2000.0,0.000402,30]
[393745422,1762961440855,-2000.0,0.000402,30]
[393745424,1762961440865,-2000.0,0.000402,30]
[393745426,1762961440875,-2000.0,0.000402,30]
[393745428,1762961440885,-200.49008386,0.00040202,12]
[393745430,1762961440894,-561.6136435,0.00040214,15]
[393745432,1762961440904,-200.49008386,0.00040219,12]
[393745434,1762961440915,-561.6136435,0.00040234,15]
[393745436,1762961440925,-200.49008386,0.00040236,12]
[393745438,1762961440934,-5631.37001934,0.00040242,4]
[393745440,1762961440944,-8447.05502901,0.00040244,4]
[393745442,1762961440954,-2815.68500967,0.00040246,4]
[393745444,1762961440963,-638.132,0.00040247,2]
[393745446,1762961440972,-156.66298396,0.00040248,28]
[393745448,1762961440981,-2815.68500967,0.00040248,4]
[393745450,1762961440991,-5631.37001934,0.0004025,4]
[393745452,1762961441000,-2815.68500967,0.00040252,4]
[393745454,1762961441010,-2815.68500967,0.00040252,4]
[393745456,1762961441019,-200.49008386,0.00040252,12]
[393745458,1762961441028,-5000.0,0.00040253,120]
[393745460,1762961441037,-1703.32465039,0.00040253,15]
[393745461,1762961441046,-1152.80910719,0.00040254,30]
[393745464,1762961441056,-561.6136435,0.00040255,15]
[393745466,1762961441065,-167.47242141,0.0004026,2]
[393745467,1762961441074,-156.66298396,0.00040261,28]
[393745469,1762961441084,-167.44169757,0.00040261,14]
[393745472,1762961441093,-167.44169756,0.00040262,14]
[393745474,1762961441103,-1703.32465036,0.00040262,15]
[393745476,1762961441112,-200.49008386,0.00040269,12]
[393745477,1762961441121,-2815.68500967,0.00040271,4]
[393745479,1762961441132,-1703.32465036,0.00040271,15]
[393745481,1762961441141,-156.66298396,0.00040273,28]
[393745484,1762961441151,-561.6136435,0.00040275,15]
[393745486,1762961441162,-1703.32465036,0.00040281,15]
[393745488,1762961441172,-156.66298396,0.00040286,28]
[393745490,1762961441182,-200.49008386,0.00040286,12]
[393745492,1762961441191,-2815.68500967,0.00040289,4]
[393745493,1762961441200,-1703.32465036,0.0004029,15]
[393745496,1762961441211,-561.6136435,0.00040296,15]
[393745498,1762961441220,-156.66298396,0.00040298,28]
[393745500,1762961441231,-1703.32465036,0.00040299,15]
[393745502,1762961441240,-229.8,0.000403,60]
[393745504,1762961441249,-250.0,0.000403,120]
[393745506,1762961441258,-200.49008386,0.00040303,12]
[393745508,1762961441268,-2815.68500967,0.00040308,4]
[393745510,1762961441277,-1703.32465036,0.00040308,15]
[393745512,1762961441287,-156.66298396,0.00040311,28]
[393745514,1762961441297,-561.6136435,0.00040316,15]
[393745516,1762961441307,-2815.68500967,0.00040317,4]
[393745518,1762961441317,-1703.32465036,0.00040318,15]
[393745520,1762961441328,-200.49008386,0.00040319,12]
[393745522,1762961441337,-156.66298396,0.00040323,28]
[393745524,1762961441347,-2815.68500967,0.00040326,4]
[393745526,1762961441356,-1703.32465036,0.00040327,15]
[393745528,1762961441367,-2815.68500967,0.0004033,4]
[393745530,1762961441376,-5631.37001934,0.00040331,4]
[393745532,1762961441385,-2815.68500967,0.00040331,4]
[393745534,1762961441395,-8447.05502901,0.00040332,4]
[393745536,1762961441405,-8447.05502901,0.00040333,4]
[393745538,1762961441418,-19709.7950677,0.00040333,4]
[393745540,1762961441427,-154.01,0.00040336,120]
[393745542,1762961441437,-169.14351444,0.00040336,120]
[393745544,1762961441446,-169.14,0.00040336,120]
[393745546,1762961441455,-157.86728015,0.00040336,120]
[393745548,1762961441464,-157.86728015,0.00040336,120]
[393745550,1762961441474,-157.86728015,0.00040336,120]
[393745552,1762961441484,-157.86728015,0.00040336,120]
[393745554,1762961441494,-157.86,0.00040336,120]
[393745555,1762961441503,-178.35802767,0.00040336,120]
[393745557,1762961441513,-178.35802767,0.00040336,120]
[393745560,1762961441522,-178.35,0.00040336,120]
[393745561,1762961441531,-156.06327421,0.00040336,120]
[393745563,1762961441541,-156.06327421,0.00040336,120]
[393745566,1762961441550,-156.06327421,0.00040336,120]
[393745568,1762961441560,-156.06327421,0.00040336,120]
[393745569,1762961441570,-156.06327421,0.00040336,120]
[393745572,1762961441579,-156.06327421,0.00040336,120]
[393745573,1762961441589,-156.06327421,0.00040336,120]
[393745575,1762961441598,-156.06,0.00040336,120]
[393745578,1762961441608,-156.66298396,0.00040336,28]
[393745580,1762961441618,-1703.32465036,0.00040336,15]
[393745582,1762961441627,-181.31025833,0.00040336,120]
[393745583,1762961441637,-292.01543013,0.00040336,2]
[393745585,1762961441646,-495.74912012,0.00040336,8]
[393745588,1762961441656,-164.48213506,0.00040336,2]
[393745590,1762961441668,-200.49008386,0.00040336,12]
[393745592,1762961441678,-167.47242141,0.00040337,2]
[393745594,1762961441687,-2116.79892046,0.0004034,4]
[393745596,1762961441697,-689.51,0.00040341,20]
[393745598,1762961441707,-500.0,0.00040341,20]
[393745600,1762961441717,-500.0,0.00040341,20]
[393745602,1762961441727,-500.0,0.00040341,20]
[393745604,1762961441736,-848.92,0.00040341,20]
[393745606,1762961441745,-500.0,0.00040341,20]
[393745608,1762961441758,-660.04,0.00040341,20]
[393745610,1762961441767,-500.7357277,0.00040341,20]
[393745612,1762961441776,-500.0,0.00040341,20]
[393745614,1762961441785,-806.13,0.00040341,20]
[393745616,1762961441795,-500.0,0.00040341,20]
[393745618,1762961441805,-514.2,0.00040341,20]
[393745620,1762961441813,-8467.19568184,0.00040341,4]
[393745622,1762961441822,-500.0,0.00040342,20]
[393745623,1762961441833,-500.0,0.00040342,20]
[393745624,1762961441842,-500.0,0.00040342,20]
[393745625,1762961441851,-500.0,0.00040342,20]
[393745626,1762961441860,-500.0,0.00040342,20]
[393745627,1762961441869,-500.0,0.00040342,20]
[393745628,1762961441877,-500.0,0.00040342,20]
[393745629,1762961441887,-500.0,0.00040342,20]
[393745630,1762961441895,-500.0,0.00040342,20]
[393745632,1762961441905,-500.0,0.00040342,20]
[393745634,1762961441914,-500.0,0.00040342,20]
[393745636,1762961441923,-716.71,0.00040342,20]
[393745638,1762961441932,-500.0,0.00040342,20]
[393745640,1762961441941,-500.0,0.00040342,20]
[393745642,1762961441950,-500.0,0.00040342,20]
[393745643,1762961441959,-500.0,0.00040342,20]
[393745645,1762961441968,-500.0,0.00040342,20]
[393745647,1762961441978,-500.0,0.00040342,20]
[393745649,1762961441990,-500.0,0.00040342,20]
[393745651,1762961442000,-579.9,0.00040342,20]
[393745653,1762961442009,-187.94755961,0.00040342,20]
[393745655,1762961442018,-500.0,0.00040342,20]
[393745657,1762961442027,-850.13,0.00040342,20]
[393745659,1762961442037,-500.0,0.00040342,20]
[393745661,1762961442046,-500.0,0.00040342,20]
[393745663,1762961442055,-500.0,0.00040342,2]
[393745665,1762961442065,-188.04,0.00040342,20]
[393745667,1762961442074,-410.78754055,0.00040342,20]
[393745669,1762961442084,-500.0,0.00040342,20]
[393745671,1762961442093,-500.0,0.00040342,20]
[393745673,1762961442102,-413.60072897,0.00040342,20]
[393745675,1762961442111,-500.0,0.00040342,20]
[393745677,1762961442120,-2116.79892046,0.00040343,4]
[393745679,1762961442129,-12700.7935228,0.00040343,4]
[393745681,1762961442138,-500.0,0.00040343,20]
[393745683,1762961442148,-500.0,0.00040343,20]
[393745685,1762961442157,-500.0,0.00040343,20]
[393745687,1762961442168,-500.0,0.00040343,20]
[393745689,1762961442178,-556.95349104,0.00040343,20]
[393745691,1762961442188,-500.0,0.00040343,20]
[393745693,1762961442197,-500.0,0.00040343,20]
[393745695,1762961442206,-500.0,0.00040343,20]
[393745697,1762961442215,-500.0,0.00040343,20]
[393745699,1762961442225,-500.0,0.00040343,20]
[393745701,1762961442234,-500.0,0.00040343,20]
[393745703,1762961442244,-500.0,0.00040343,20]
[393745705,1762961442253,-558.02,0.00040343,20]
[393745707,1762961442262,-500.0,0.00040343,20]
[393745709,1762961442272,-500.0,0.00040343,20]
[393745711,1762961442281,-500.0,0.00040343,20]
[393745713,1762961442291,-500.0,0.00040343,20]
[393745715,1762961442301,-573.75855356,0.00040343,20]
[393745717,1762961442314,-500.0,0.00040343,20]
[393745719,1762961442324,-500.0,0.00040343,20]
[393745721,1762961442333,-500.0,0.00040343,20]
[393745723,1762961442343,-500.0,0.00040343,20]
[393745725,1762961442352,-500.0,0.00040343,20]
[393745727,1762961442361,-500.0,0.00040343,20]
[393745729,1762961442371,-500.0,0.00040343,20]
[393745732,1762961442380,-500.0,0.00040343,20]
[393745734,1762961442390,-500.0,0.00040343,20]
[393745735,1762961442398,-500.0,0.00040343,20]
[393745737,1762961442407,-500.0,0.00040343,20]
[393745740,1762961442419,-500.0,0.00040343,20]
[393745742,1762961442430,-500.0,0.00040343,20]
[393745744,1762961442439,-500.0,0.00040343,20]
[393745745,1762961442448,-500.0,0.00040343,20]
[393745747,1762961442458,-685.39,0.00040343,20]
[393745750,1762961442467,-500.0,0.00040343,20]
[393745751,1762961442477,-611.51173224,0.00040343,20]
[393745754,1762961442486,-591.96287328,0.00040343,20]
[393745755,1762961442496,-455.10354962,0.00040343,20]
[393745756,1762961442505,-634.97,0.00040343,20]
[393745757,1762961442515,-500.0,0.00040343,20]
[393745758,1762961442524,-500.0,0.00040343,20]
[393745759,1762961442534,-500.0,0.00040343,20]
[393745760,1762961442543,-500.0,0.00040343,20]
[393745761,1762961442552,-521.50599681,0.00040343,20]
[393745762,1762961442562,-500.0,0.00040343,20]
[393745763,1762961442571,-500.0,0.00040343,20]
[393745764,1762961442580,-500.0,0.00040343,20]
[393745765,1762961442589,-500.0,0.00040343,20]
[393745766,1762961442599,-500.0,0.00040343,2]
[393745768,1762961442609,-500.0,0.00040343,20]
[393745770,1762961442618,-500.0,0.00040343,20]
[393745772,1762961442628,-500.0,0.00040343,20]
[393745773,1762961442638,-500.0,0.00040343,20]
[393745774,1762961442647,-500.0,0.00040343,20]
[393745776,1762961442656,-500.0,0.00040343,20]
[393745778,1762961442667,-500.0,0.00040343,20]
[393745779,1762961442676,-500.0,0.00040343,20]
[393745781,1762961442685,-500.0,0.00040343,20]
[393745783,1762961442695,-515.6337341,0.00040343,20]
[393745785,1762961442705,-614.7453457,0.00040343,20]
[393745787,1762961442714,-500.0,0.00040343,20]
[393745788,1762961442723,-500.0,0.00040343,20]
[393745789,1762961442733,-500.0,0.00040343,20]
[393745790,1762961442743,-500.0,0.00040343,20]
[393745791,1762961442754,-500.0,0.00040343,20]
[393745792,1762961442766,-500.0,0.00040343,20]
[393745793,1762961442776,-500.0,0.00040343,20]
[393745794,1762961442787,-631.40327244,0.00040343,20]
[393745795,1762961442797,-500.0,0.00040343,20]
[393745796,1762961442806,-500.0,0.00040343,20]
[393745797,1762961442815,-500.0,0.00040343,20]
[393745798,1762961442824,-500.0,0.00040343,20]
[393745799,1762961442835,-500.0,0.00040343,20]
[393745800,1762961442844,-500.0,0.00040343,20]
[393745801,1762961442853,-500.0,0.00040343,20]
[393745802,1762961442862,-500.0,0.00040343,20]
[393745803,1762961442871,-500.0,0.00040343,20]
[393745804,1762961442881,-500.0,0.00040343,20]
[393745805,1762961442891,-500.0,0.00040343,20]
[393745806,1762961442900,-500.0,0.00040343,20]
[393745807,1762961442909,-500.0,0.00040343,20]
[393745808,1762961442920,-500.0,0.00040343,20]
[393745809,1762961442930,-500.0,0.00040343,20]
[393745810,1762961442939,-500.0,0.00040343,20]
[393745811,1762961442948,-500.0,0.00040343,20]
[393745812,1762961442957,-500.0,0.00040343,20]
[393745813,1762961442966,-500.0,0.00040343,20]
[393745814,1762961442975,-500.0,0.00040343,20]
[393745815,1762961442985,-500.0,0.00040343,20]
[393745816,1762961442995,-500.0,0.00040343,20]
[393745817,1762961443004,-500.0,0.00040343,20]
[393745818,1762961443014,-196.75664295,0.00040343,20]
[393745819,1762961443023,-500.0,0.00040343,20]
[393745820,1762961443032,-500.0,0.00040343,20]
[393745821,1762961443041,-500.0,0.00040343,20]
[393745822,1762961443051,-500.0,0.00040343,20]
[393745823,1762961443197,-500.0,0.00040343,20]
[393745824,1762961443208,-500.0,0.00040343,20]
[393745825,1762961443218,-500.0,0.00040343,20]
[393745826,1762961443228,-500.0,0.00040343,20]
[393745827,1762961443238,-500.0,0.00040343,20]
[393745828,1762961443248,-500.0,0.00040343,20]
[393745829,1762961443257,-500.0,0.00040343,20]
[393745830,1762961443267,-500.0,0.00040343,20]
[393745831,1762961443276,-500.0,0.00040343,20]
[393745832,1762961443286,-552.21,0.00040343,20]
[393745833,1762961443295,-896.65,0.00040343,20]
[393745834,1762961443305,-500.0,0.00040343,20]
[393745835,1762961443315,-500.0,0.00040343,20]
[393745836,1762961443324,-500.0,0.00040343,20]
[393745837,1762961443334,-500.0,0.00040343,20]
[393745838,1762961443344,-500.0,0.00040343,20]
[393745839,1762961443354,-1035.47,0.00040343,20]
[393745840,1762961443363,-500.0,0.00040343,20]
[393745841,1762961443373,-500.0,0.00040343,20]
[393745842,1762961443383,-500.0,0.00040343,20]
[393745843,1762961443392,-500.0,0.00040343,20]
[393745844,1762961443401,-500.0,0.00040343,20]
[393745845,1762961443411,-510.3,0.00040343,20]
[393745846,1762961443422,-500.0,0.00040343,20]
[393745847,1762961443431,-500.0,0.00040343,20]
[393745848,1762961443441,-500.0,0.00040343,20]
[393745849,1762961443450,-500.0,0.00040343,20]
[393745850,1762961443459,-823.17,0.00040343,20]
[393745851,1762961443469,-134.02689682,0.00040343,20]
[393745857,1762961443637,-365.97310318,0.00040343,20]
[393745859,1762961443646,-500.0,0.00040343,20]
[393745861,1762961443655,-500.0,0.00040343,20]
[393745862,1762961443666,-272.10625775,0.00040343,20]
[393745863,1762961443675,-597.47,0.00040343,20]
[393745864,1762961443684,-500.0,0.00040343,20]
[393745865,1762961443693,-500.0,0.00040343,20]
[393745866,1762961443702,-500.0,0.00040343,10]
[393745867,1762961443711,-500.0,0.00040343,20]
[393745868,1762961443721,-203.37398758,0.00040343,20]
[393745869,1762961443730,-500.0,0.00040343,20]
[393745870,1762961443739,-500.0,0.00040343,20]
[393745871,1762961443749,-500.0,0.00040343,20]
[393745872,1762961443762,-500.0,0.00040343,20]
[393745873,1762961443772,-500.0,0.00040343,20]
[393745874,1762961443781,-500.0,0.00040343,20]
[393745875,1762961443791,-500.0,0.00040343,20]
[393745876,1762961443801,-522.54385129,0.00040343,20]
[393745877,1762961443810,-500.0,0.00040343,20]
[393745878,1762961443819,-500.0,0.00040343,20]
[393745879,1762961443829,-1167.15,0.00040343,20]
[393745880,1762961443839,-416.58500954,0.00040343,20]
[393745881,1762961443848,-5286.96,0.00040343,20]
[393745882,1762961443857,-500.0,0.00040343,20]
[393745883,1762961443866,-500.0,0.00040343,20]
[393745884,1762961443875,-500.0,0.00040343,20]
[393745885,1762961443884,-500.0,0.00040343,20]
[393745886,1762961443894,-500.0,0.00040343,20]
[393745887,1762961443904,-511.24595006,0.00040343,20]
[393745888,1762961443913,-368.75511291,0.00040343,20]
[393745889,1762961443922,-500.0,0.00040343,20]
[393745890,1762961443931,-500.0,0.00040343,20]
[393745891,1762961443941,-500.0,0.00040343,20]
[393745892,1762961443950,-653.98,0.00040343,20]
[393745893,1762961443959,-500.0,0.00040343,20]
[393745894,1762961443969,-500.0,0.00040343,20]
[393745895,1762961443978,-630.89077957,0.00040343,20]
[393745896,1762961443987,-500.0,0.00040343,20]
[393745897,1762961443997,-500.0,0.00040343,20]
[393745898,1762961444007,-418.97492259,0.00040343,20]
[393745899,1762961444016,-500.0,0.00040343,20]
[393745900,1762961444026,-500.0,0.00040343,20]
[393745901,1762961444036,-500.0,0.00040343,20]
[393745902,1762961444046,-254.90511645,0.00040343,20]
[393745903,1762961444055,-500.0,0.00040343,20]
[393745904,1762961444066,-500.0,0.00040343,20]
[393745905,1762961444076,-500.0,0.00040343,20]
[393745906,1762961444085,-248.65900854,0.00040343,20]
[393745907,1762961444094,-500.0,0.00040343,20]
[393745908,1762961444104,-2116.79892046,0.00040344,4]
[393745909,1762961444114,-500.0,0.00040345,15]
[393745910,1762961444124,-500.0,0.00040345,15]
[393745911,1762961444138,-500.0,0.00040345,15]
[393745912,1762961444147,-500.0,0.00040345,15]
[393745913,1762961444157,-500.0,0.00040345,15]
[393745914,1762961444168,-500.0,0.00040345,15]
[393745915,1762961444178,-465.84377535,0.00040345,15]
[393745916,1762961444187,-500.0,0.00040345,15]
[393745917,1762961444197,-500.0,0.00040345,15]
[393745918,1762961444207,-500.0,0.00040345,15]
[393745919,1762961444216,-500.0,0.00040345,15]
[393745920,1762961444225,-500.0,0.00040345,15]
[393745921,1762961444235,-500.0,0.00040345,15]
[393745922,1762961444244,-500.0,0.00040345,15]
[393745923,1762961444254,-500.0,0.00040345,15]
[393745924,1762961444264,-500.0,0.00040345,15]
[393745925,1762961444273,-500.0,0.00040345,15]
[393745926,1762961444283,-500.0,0.00040345,15]
[393745927,1762961444293,-500.0,0.00040345,15]
[393745928,1762961444302,-500.0,0.00040345,15]
[393745929,1762961444312,-500.0,0.00040345,15]
[393745930,1762961444322,-500.0,0.00040345,15]
[393745931,1762961444332,-500.0,0.00040345,15]
[393745932,1762961444342,-500.0,0.00040348,20]
[393745933,1762961444352,-500.0,0.00040348,20]
[393745934,1762961444361,-631.14249444,0.00040348,20]
[393745935,1762961444371,-500.0,0.00040348,20]
[393745936,1762961444380,-500.0,0.00040348,20]
[393745937,1762961444389,-500.0,0.00040348,20]
[393745938,1762961444399,-500.0,0.00040348,20]
[393745939,1762961444409,-500.0,0.00040348,20]
[393745940,1762961444420,-500.0,0.00040348,20]
[393745941,1762961444430,-500.0,0.00040348,20]
[393745942,1762961444440,-660.62,0.00040348,20]
[393745943,1762961444450,-500.0,0.00040348,20]
[393745944,1762961444459,-500.0,0.00040348,20]
[393745945,1762961444469,-500.0,0.00040348,20]
[393745946,1762961444479,-500.0,0.00040348,20]
[393745947,1762961444488,-500.0,0.00040348,20]
[393745948,1762961444497,-500.0,0.00040348,20]
[393745949,1762961444507,-500.0,0.00040348,20]
[393745950,1762961444516,-515.01,0.00040348,20]
[393745951,1762961444526,-500.0,0.00040348,20]
[393745952,1762961444535,-500.0,0.00040348,20]
[393745953,1762961444545,-500.0,0.00040348,20]
[393745954,1762961444555,-573.09,0.00040348,20]
[393745955,1762961444564,-500.0,0.00040348,20]
[393745956,1762961444573,-500.0,0.00040348,20]
[393745957,1762961444582,-500.0,0.00040348,20]
[393745958,1762961444592,-608.19,0.00040348,20]
[393745959,1762961444602,-553.37,0.00040348,20]
[393745960,1762961444611,-500.0,0.00040348,20]
[393745961,1762961444620,-500.0,0.00040348,20]
[393745962,1762961444630,-500.0,0.00040348,20]
[393745963,1762961444639,-500.0,0.00040348,20]
[393745964,1762961444649,-500.0,0.00040348,20]
[393745965,1762961444659,-876.29,0.00040348,20]
[393745966,1762961444671,-1158.17,0.00040348,20]
[393745967,1762961444680,-500.0,0.00040348,20]
[393745968,1762961444690,-500.0,0.00040348,20]
[393745969,1762961444699,-500.0,0.00040348,20]
[393745970,1762961444709,-500.0,0.00040348,20]
[393745971,1762961444718,-1477.23,0.00040348,20]
[393745972,1762961444728,-576.56,0.00040348,20]
[393745973,1762961444738,-500.0,0.00040348,20]
[393745974,1762961444751,-500.0,0.00040348,20]
[393745975,1762961444761,-500.0,0.00040348,20]
[393745976,1762961444771,-750.31,0.00040348,20]
[393745977,1762961444781,-500.0,0.00040348,20]
[393745978,1762961444791,-500.0,0.00040348,20]
[393745979,1762961444801,-14817.5924432,0.00040349,4]
[393745980,1762961444811,-8467.19568184,0.0004035,4]
[393745981,1762961444821,-19051.1902841,0.00040351,4]
[393745982,1762961444832,-689.51,0.00040352,20]
[393745983,1762961444842,-500.0,0.00040352,20]
[393745984,1762961444852,-500.0,0.00040352,20]
[393745985,1762961444862,-500.0,0.00040352,20]
[393745986,1762961444871,-500.0,0.00040352,20]
[393745987,1762961444880,-500.0,0.00040352,20]
[393745988,1762961444891,-716.71,0.00040352,20]
[393745989,1762961444900,-500.0,0.00040352,20]
[393745990,1762961444910,-500.0,0.00040352,20]
[393745991,1762961444921,-500.0,0.00040352,20]
[393745992,1762961444930,-848.92,0.00040352,20]
[393745993,1762961444940,-500.0,0.00040352,20]
[393745994,1762961444949,-500.0,0.00040352,20]